[Event "*** SCC Grand Prix: Titled Tuesday Blitz"]
[Site "Chess.com"]
[Date "2020.06.02"]
[Round "10"]
[White "temus_galaktionov"]
[Black "wild_cat99"]
[Result "1-0"]
[WhiteElo "2729"]
[BlackElo "2589"]
[TimeControl "180+1"]
[EndTime "11:57:12 PDT"]
[Termination "temus_galaktionov won by resignation"]

1. d4 {[%clk 0:03:00.9]} 1... Nf6 {[%clk 0:02:59.7]} 2. Nf3 {[%clk 0:03:01.4]}
2... g6 {[%clk 0:02:59.5]} 3. c4 {[%clk 0:03:01.9]} 3... Bg7 {[%clk 0:02:59.7]}
4. Nc3 {[%clk 0:03:02.5]} 4... d5 {[%clk 0:02:59.9]} 5. cxd5 {[%clk 0:03:03.1]}
5... Nxd5 {[%clk 0:03:00.8]} 6. e4 {[%clk 0:03:03.5]} 6... Nxc3 {[%clk
0:03:00.8]} 7. bxc3 {[%clk 0:03:04.4]} 7... c5 {[%clk 0:03:01.6]} 8. Be3 {[%clk
0:03:04.1]} 8... Qa5 {[%clk 0:03:02.1]} 9. Qd2 {[%clk 0:03:04.1]} 9... cxd4
{[%clk 0:03:02.6]} 10. cxd4 {[%clk 0:03:05]} 10... Qxd2+ {[%clk 0:03:03.3]} 11.
Kxd2 {[%clk 0:03:04.7]} 11... Nc6 {[%clk 0:03:03.2]} 12. Rc1 {[%clk 0:03:04.9]}
12... O-O {[%clk 0:03:03.4]} 13. d5 {[%clk 0:03:05.3]} 13... Ne5 {[%clk
0:03:02.1]} 14. Nxe5 {[%clk 0:03:04.6]} 14... Bxe5 {[%clk 0:03:03]} 15. f4
{[%clk 0:03:05.3]} 15... Bg7 {[%clk 0:03:02.7]} 16. Bc4 {[%clk 0:03:05.8]} 16...
Kh8 {[%clk 0:03:02]} 17. h3 {[%clk 0:03:05.5]} 17... Bd7 {[%clk 0:03:00]} 18.
Ke2 {[%clk 0:03:05.2]} 18... Rfc8 {[%clk 0:02:46.9]} 19. Bd3 {[%clk 0:03:05]}
19... b5 {[%clk 0:02:32]} 20. e5 {[%clk 0:02:59.2]} 20... a5 {[%clk 0:02:25.4]}
21. Bc5 {[%clk 0:02:55.8]} 21... e6 {[%clk 0:02:16]} 22. d6 {[%clk 0:02:29.9]}
22... Bf8 {[%clk 0:02:15.1]} 23. Bb6 {[%clk 0:02:26.8]} 23... Bc6 {[%clk
0:02:09.9]} 24. Rhg1 {[%clk 0:02:18.6]} 24... f5 {[%clk 0:02:07.2]} 25. Rc2
{[%clk 0:02:13.1]} 25... Bd7 {[%clk 0:02:05.9]} 26. Rgc1 {[%clk 0:02:11.8]}
26... Rcb8 {[%clk 0:02:05]} 27. Bd4 {[%clk 0:02:06]} 27... b4 {[%clk 0:02:03]}
28. Rc7 {[%clk 0:02:06.3]} 28... Rd8 {[%clk 0:01:57.6]} 29. Rb7 {[%clk 0:01:54]}
29... Bc8 {[%clk 0:01:57.6]} 30. Rf7 {[%clk 0:01:52.8]} 30... Kg8 {[%clk
0:01:56.9]} 31. Rcc7 {[%clk 0:01:52]} 31... a4 {[%clk 0:01:56.7]} 32. Kd2 {[%clk
0:01:23.8]} 32... Ba6 {[%clk 0:01:52.8]} 33. Bxa6 {[%clk 0:01:19.9]} 33... Rxa6
{[%clk 0:01:53.7]} 34. Rfd7 {[%clk 0:01:13.3]} 34... Rxd7 {[%clk 0:01:50.9]} 35.
Rxd7 {[%clk 0:01:14.2]} 35... b3 {[%clk 0:01:51.5]} 36. axb3 {[%clk 0:01:13.1]}
36... axb3 {[%clk 0:01:51.5]} 37. Rb7 {[%clk 0:01:13.3]} 37... Ra2+ {[%clk
0:01:49]} 38. Kd3 {[%clk 0:01:13.2]} 38... Ra3 {[%clk 0:01:36.8]} 39. Bc5 {[%clk
0:01:06.4]} 39... Ra8 {[%clk 0:01:25]} 40. Rxb3 {[%clk 0:01:05.2]} 40... Bh6
{[%clk 0:01:25.9]} 41. g3 {[%clk 0:01:03.5]} 41... g5 {[%clk 0:01:24]} 42. d7
{[%clk 0:01:03.4]} 42... gxf4 {[%clk 0:01:22.1]} 43. Be7 {[%clk 0:01:03.2]}
43... fxg3 {[%clk 0:01:18.7]} 44. d8=Q+ {[%clk 0:01:02.6]} 44... Rxd8+ {[%clk
0:01:18.5]} 45. Bxd8 {[%clk 0:01:03.5]} 45... g2 {[%clk 0:01:17]} 46. Bb6 {[%clk
0:01:02.4]} 46... Bf4 {[%clk 0:01:15.1]} 47. Rb2 {[%clk 0:01:02]} 47... Bxe5
{[%clk 0:01:09.2]} 48. Rxg2+ {[%clk 0:01:02.4]} 48... Kf7 {[%clk 0:01:10.1]} 49.
Bd4 {[%clk 0:01:02.3]} 49... Kf6 {[%clk 0:00:58.8]} 50. Bxe5+ {[%clk 0:00:55.6]}
50... Kxe5 {[%clk 0:00:59.7]} 51. Ke3 {[%clk 0:00:56.1]} 1-0

[Event "*** SCC Grand Prix: Titled Tuesday Blitz"]
[Site "Chess.com"]
[Date "2020.06.02"]
[Round "10"]
[White "SHIVACalypso"]
[Black "Fighter008"]
[Result "0-1"]
[WhiteElo "2336"]
[BlackElo "2578"]
[TimeControl "180+1"]
[EndTime "11:57:13 PDT"]
[Termination "Fighter008 won on time"]

1. Nf3 {[%clk 0:02:57.1]} 1... Nf6 {[%clk 0:02:59.1]} 2. c4 {[%clk 0:02:57.5]}
2... g6 {[%clk 0:02:59.1]} 3. g3 {[%clk 0:02:58]} 3... Bg7 {[%clk 0:02:59.4]} 4.
Bg2 {[%clk 0:02:58.5]} 4... O-O {[%clk 0:02:59.8]} 5. O-O {[%clk 0:02:59]} 5...
d6 {[%clk 0:03:00.4]} 6. Nc3 {[%clk 0:02:59.5]} 6... Nbd7 {[%clk 0:02:59.6]} 7.
d3 {[%clk 0:02:58.4]} 7... e5 {[%clk 0:02:59.4]} 8. Rb1 {[%clk 0:02:58.8]} 8...
a5 {[%clk 0:02:58.7]} 9. a3 {[%clk 0:02:58.9]} 9... c6 {[%clk 0:02:56.7]} 10. b4
{[%clk 0:02:58.9]} 10... axb4 {[%clk 0:02:57.4]} 11. axb4 {[%clk 0:02:59.8]}
11... d5 {[%clk 0:02:58.1]} 12. b5 {[%clk 0:02:48.5]} 12... Re8 {[%clk
0:02:48.1]} 13. bxc6 {[%clk 0:02:41.8]} 13... bxc6 {[%clk 0:02:49]} 14. cxd5
{[%clk 0:02:42]} 14... cxd5 {[%clk 0:02:49.9]} 15. Nb5 {[%clk 0:02:37.7]} 15...
e4 {[%clk 0:02:42.5]} 16. dxe4 {[%clk 0:02:34.1]} 16... dxe4 {[%clk 0:02:43.4]}
17. Nfd4 {[%clk 0:02:32.7]} 17... Ne5 {[%clk 0:02:41.6]} 18. Bf4 {[%clk
0:02:25.2]} 18... Ba6 {[%clk 0:02:21.5]} 19. Qb3 {[%clk 0:01:43.8]} 19... Rb8
{[%clk 0:02:14.8]} 20. Qa4 {[%clk 0:01:40.2]} 20... Ra8 {[%clk 0:02:10.6]} 21.
Qb3 {[%clk 0:01:38.6]} 21... Rb8 {[%clk 0:01:53.9]} 22. Qa4 {[%clk 0:01:36.6]}
22... Rb6 {[%clk 0:01:53.9]} 23. Rfc1 {[%clk 0:01:03.6]} 23... Nd5 {[%clk
0:01:46.8]} 24. Bxe4 {[%clk 0:00:49.8]} 24... Nxf4 {[%clk 0:01:45.2]} 25. gxf4
{[%clk 0:00:50.7]} 25... Ng4 {[%clk 0:01:42.2]} 26. Bf3 {[%clk 0:00:46.5]} 26...
Qh4 {[%clk 0:01:38.7]} 27. Bxg4 {[%clk 0:00:31.6]} 27... Qxg4+ {[%clk
0:01:36.8]} 28. Kf1 {[%clk 0:00:29.8]} 28... Bxb5 {[%clk 0:01:34.9]} 29. Rxb5
{[%clk 0:00:20.1]} 29... Bxd4 {[%clk 0:01:33.6]} 30. Rg5 {[%clk 0:00:10.3]}
30... Qxe2+ {[%clk 0:01:32.1]} 31. Kg2 {[%clk 0:00:10.8]} 31... Qxf2+ {[%clk
0:01:31.8]} 32. Kh1 {[%clk 0:00:10.3]} 32... Rbe6 {[%clk 0:01:28]} 0-1

[Event "*** SCC Grand Prix: Titled Tuesday Blitz"]
[Site "Chess.com"]
[Date "2020.06.02"]
[Round "10"]
[White "Rodalquilar"]
[Black "awesomevishesh"]
[Result "1-0"]
[WhiteElo "2617"]
[BlackElo "2445"]
[TimeControl "180+1"]
[EndTime "11:57:15 PDT"]
[Termination "Rodalquilar won on time"]

1. d4 {[%clk 0:03:00.9]} 1... Nf6 {[%clk 0:02:59.6]} 2. Bf4 {[%clk 0:03:00.9]}
2... g6 {[%clk 0:02:59]} 3. e3 {[%clk 0:03:01.5]} 3... Bg7 {[%clk 0:02:59]} 4.
Nf3 {[%clk 0:03:02]} 4... O-O {[%clk 0:02:58.9]} 5. Be2 {[%clk 0:03:02.6]} 5...
c5 {[%clk 0:02:56.5]} 6. O-O {[%clk 0:03:02.5]} 6... d6 {[%clk 0:02:55]} 7. c3
{[%clk 0:03:02.4]} 7... cxd4 {[%clk 0:02:54.3]} 8. exd4 {[%clk 0:03:02.3]} 8...
Nd5 {[%clk 0:02:54.7]} 9. Bg3 {[%clk 0:02:55.1]} 9... Bh6 {[%clk 0:02:52.3]} 10.
Re1 {[%clk 0:02:53.3]} 10... Nc6 {[%clk 0:02:52]} 11. Nbd2 {[%clk 0:02:46.5]}
11... Bf5 {[%clk 0:02:34.9]} 12. Nc4 {[%clk 0:02:45.8]} 12... b5 {[%clk
0:02:28.5]} 13. Ne3 {[%clk 0:02:39.7]} 13... Nxe3 {[%clk 0:02:27.2]} 14. fxe3
{[%clk 0:02:40.1]} 14... Bxe3+ {[%clk 0:02:22.1]} 15. Kh1 {[%clk 0:02:39.9]}
15... Bh6 {[%clk 0:02:01.9]} 16. Bxb5 {[%clk 0:02:39.8]} 16... Bd7 {[%clk
0:01:38.7]} 17. Bc4 {[%clk 0:02:33.6]} 17... Rb8 {[%clk 0:01:20.7]} 18. Qc2
{[%clk 0:02:32.6]} 18... Bf5 {[%clk 0:01:18.6]} 19. Qa4 {[%clk 0:02:29.8]} 19...
Na5 {[%clk 0:01:04.5]} 20. Bb3 {[%clk 0:02:14.5]} 20... Bd7 {[%clk 0:00:51.5]}
21. Qa3 {[%clk 0:02:14.7]} 21... Re8 {[%clk 0:00:47.3]} 22. Rf1 {[%clk
0:02:11.9]} 22... Rf8 {[%clk 0:00:26.6]} 23. Bd5 {[%clk 0:02:04.2]} 23... Bb5
{[%clk 0:00:25.5]} 24. Rfe1 {[%clk 0:01:51.5]} 24... Re8 {[%clk 0:00:15.1]} 25.
b4 {[%clk 0:01:48]} 25... Nc4 {[%clk 0:00:06]} 26. Qb3 {[%clk 0:01:47.6]} 26...
Rc8 {[%clk 0:00:04]} 27. a4 {[%clk 0:01:47.1]} 27... e6 {[%clk 0:00:04.1]} 28.
Bb7 {[%clk 0:01:42.6]} 28... Rc7 {[%clk 0:00:03.8]} 29. axb5 {[%clk 0:01:43]}
29... Rxb7 {[%clk 0:00:01.5]} 30. Qxc4 {[%clk 0:01:43]} 30... Qd7 {[%clk
0:00:01.6]} 31. Qc6 {[%clk 0:01:40]} 31... Rc8 {[%clk 0:00:02.2]} 32. Qxd7
{[%clk 0:01:37.5]} 32... Rxd7 {[%clk 0:00:03.1]} 33. Ra3 {[%clk 0:01:34.8]}
33... Rc4 {[%clk 0:00:02.9]} 34. Rea1 {[%clk 0:01:31.1]} 34... Rb7 {[%clk
0:00:01.9]} 35. Bxd6 {[%clk 0:01:26.7]} 35... Rxb5 {[%clk 0:00:02]} 36. Bc5
{[%clk 0:01:27.2]} 36... a5 {[%clk 0:00:01.4]} 37. Ne5 {[%clk 0:01:25.8]} 1-0

[Event "*** SCC Grand Prix: Titled Tuesday Blitz"]
[Site "Chess.com"]
[Date "2020.06.02"]
[Round "10"]
[White "mamonika"]
[Black "pfalcon1949"]
[Result "0-1"]
[WhiteElo "1950"]
[BlackElo "2009"]
[TimeControl "180+1"]
[EndTime "11:57:16 PDT"]
[Termination "pfalcon1949 won by resignation"]

1. e4 {[%clk 0:02:35.8]} 1... e6 {[%clk 0:02:56.8]} 2. d4 {[%clk 0:02:35.5]}
2... d5 {[%clk 0:02:56.5]} 3. Nd2 {[%clk 0:02:35.5]} 3... c5 {[%clk 0:02:55.8]}
4. exd5 {[%clk 0:02:28.1]} 4... exd5 {[%clk 0:02:54]} 5. Ngf3 {[%clk 0:02:27.9]}
5... a6 {[%clk 0:02:53.4]} 6. Be2 {[%clk 0:02:22.8]} 6... c4 {[%clk 0:02:53.6]}
7. O-O {[%clk 0:02:21.3]} 7... Bd6 {[%clk 0:02:54.2]} 8. Re1 {[%clk 0:02:21.2]}
8... Ne7 {[%clk 0:02:54.5]} 9. b3 {[%clk 0:02:10.2]} 9... cxb3 {[%clk
0:02:53.2]} 10. axb3 {[%clk 0:02:02]} 10... Nbc6 {[%clk 0:02:54.1]} 11. Bb2
{[%clk 0:01:54.5]} 11... O-O {[%clk 0:02:51.5]} 12. c4 {[%clk 0:01:37.8]} 12...
Bf5 {[%clk 0:02:45.8]} 13. c5 {[%clk 0:01:36.1]} 13... Bc7 {[%clk 0:02:44.3]}
14. h3 {[%clk 0:01:15]} 14... Ng6 {[%clk 0:02:42.4]} 15. Nf1 {[%clk 0:01:12.3]}
15... Re8 {[%clk 0:02:42.4]} 16. Ne3 {[%clk 0:01:11.2]} 16... Be4 {[%clk
0:02:40.3]} 17. Bd3 {[%clk 0:01:07.9]} 17... Bxd3 {[%clk 0:02:35.5]} 18. Qxd3
{[%clk 0:01:07.6]} 18... Qf6 {[%clk 0:02:33.8]} 19. Nxd5 {[%clk 0:01:01.7]}
19... Rxe1+ {[%clk 0:02:24.2]} 20. Rxe1 {[%clk 0:01:02.6]} 20... Qd8 {[%clk
0:02:23.1]} 21. Nxc7 {[%clk 0:00:55.8]} 21... Qxc7 {[%clk 0:02:23.1]} 22. d5
{[%clk 0:00:55.1]} 22... Nb4 {[%clk 0:02:18.9]} 23. Qe4 {[%clk 0:00:52.7]} 23...
a5 {[%clk 0:02:09]} 24. Qd4 {[%clk 0:00:31.2]} 24... f6 {[%clk 0:02:01.2]} 25.
d6 {[%clk 0:00:30]} 25... Qf7 {[%clk 0:01:56.6]} 26. d7 {[%clk 0:00:26.5]} 26...
Rd8 {[%clk 0:01:54.3]} 27. Rd1 {[%clk 0:00:17.3]} 27... Nf8 {[%clk 0:01:50.7]}
28. Qe4 {[%clk 0:00:11.6]} 28... Rxd7 {[%clk 0:01:46.5]} 29. Rxd7 {[%clk
0:00:11.4]} 29... Qxd7 {[%clk 0:01:46.9]} 30. Qc4+ {[%clk 0:00:10.4]} 30... Kh8
{[%clk 0:01:45.2]} 31. Kh2 {[%clk 0:00:09.6]} 31... h6 {[%clk 0:01:44.8]} 32.
Nh4 {[%clk 0:00:08.5]} 32... Qc7+ {[%clk 0:01:44]} 33. g3 {[%clk 0:00:08.4]}
33... Qd7 {[%clk 0:01:31.8]} 34. Qe4 {[%clk 0:00:06.6]} 34... Qd2 {[%clk
0:01:25.8]} 35. Bd4 {[%clk 0:00:06.1]} 35... Qd3 {[%clk 0:01:15.9]} 36. Be3
{[%clk 0:00:05]} 36... Qxe4 {[%clk 0:01:15]} 0-1

[Event "*** SCC Grand Prix: Titled Tuesday Blitz"]
[Site "Chess.com"]
[Date "2020.06.02"]
[Round "10"]
[White "DannyLondon"]
[Black "CraiggoryC"]
[Result "1-0"]
[WhiteElo "2308"]
[BlackElo "2090"]
[TimeControl "180+1"]
[EndTime "11:57:17 PDT"]
[Termination "DannyLondon won by resignation"]

1. c4 {[%clk 0:03:00.9]} 1... Nf6 {[%clk 0:02:36.9]} 2. g3 {[%clk 0:03:00.1]}
2... e6 {[%clk 0:02:33.6]} 3. Bg2 {[%clk 0:02:59.5]} 3... d5 {[%clk 0:02:34.2]}
4. Nf3 {[%clk 0:02:59.2]} 4... Be7 {[%clk 0:02:33.3]} 5. O-O {[%clk 0:02:59]}
5... O-O {[%clk 0:02:32.3]} 6. d4 {[%clk 0:02:58.1]} 6... dxc4 {[%clk
0:02:32.8]} 7. Qc2 {[%clk 0:02:56.9]} 7... a6 {[%clk 0:02:33]} 8. a4 {[%clk
0:02:56.8]} 8... c5 {[%clk 0:02:29.8]} 9. dxc5 {[%clk 0:02:37.8]} 9... Nc6
{[%clk 0:02:20.1]} 10. Nbd2 {[%clk 0:02:35.6]} 10... e5 {[%clk 0:01:55.1]} 11.
Nxc4 {[%clk 0:02:26.6]} 11... e4 {[%clk 0:01:51.5]} 12. Ng5 {[%clk 0:02:26.1]}
12... Nd4 {[%clk 0:01:24]} 13. Qd1 {[%clk 0:02:25.4]} 13... Bf5 {[%clk 0:01:04]}
14. Nd6 {[%clk 0:02:04.1]} 14... Bxd6 {[%clk 0:00:45.9]} 15. cxd6 {[%clk
0:02:03.8]} 15... Qxd6 {[%clk 0:00:24.5]} 16. e3 {[%clk 0:02:01.1]} 16... h6
{[%clk 0:00:23.1]} 17. Qxd4 {[%clk 0:01:45.9]} 17... Qxd4 {[%clk 0:00:19.1]} 18.
exd4 {[%clk 0:01:45.5]} 18... hxg5 {[%clk 0:00:19.5]} 19. Bxg5 {[%clk
0:01:44.8]} 19... Rfd8 {[%clk 0:00:18.7]} 20. Rfd1 {[%clk 0:01:34]} 20... Rd5
{[%clk 0:00:17.9]} 21. Rd2 {[%clk 0:01:21.6]} 21... Rad8 {[%clk 0:00:15.8]} 22.
Rad1 {[%clk 0:01:18.1]} 22... Bg4 {[%clk 0:00:13.8]} 23. Bxf6 {[%clk 0:00:52.4]}
23... gxf6 {[%clk 0:00:12.5]} 24. Bxe4 {[%clk 0:00:52.6]} 24... Bxd1 {[%clk
0:00:09.8]} 25. Bxd5 {[%clk 0:00:51.3]} 25... Bxa4 {[%clk 0:00:07]} 26. Bxb7
{[%clk 0:00:48.9]} 26... Rb8 {[%clk 0:00:06.8]} 27. Bxa6 {[%clk 0:00:46.7]} 1-0

[Event "*** SCC Grand Prix: Titled Tuesday Blitz"]
[Site "Chess.com"]
[Date "2020.06.02"]
[Round "10"]
[White "OnatB"]
[Black "tan275"]
[Result "1-0"]
[WhiteElo "2336"]
[BlackElo "2193"]
[TimeControl "180+1"]
[EndTime "11:57:18 PDT"]
[Termination "OnatB won by resignation"]

1. e4 {[%clk 0:03:00.9]} 1... c6 {[%clk 0:02:58.9]} 2. d4 {[%clk 0:03:00.3]}
2... d5 {[%clk 0:02:59]} 3. Nc3 {[%clk 0:03:01.2]} 3... dxe4 {[%clk 0:02:58.6]}
4. Nxe4 {[%clk 0:03:02.1]} 4... Bf5 {[%clk 0:02:58.5]} 5. Ng3 {[%clk 0:03:01.4]}
5... Bg6 {[%clk 0:02:58.8]} 6. Nf3 {[%clk 0:03:02.3]} 6... e6 {[%clk 0:02:58.3]}
7. h4 {[%clk 0:03:01]} 7... h6 {[%clk 0:02:58.6]} 8. h5 {[%clk 0:03:01]} 8...
Bh7 {[%clk 0:02:57.8]} 9. Bd3 {[%clk 0:03:01.9]} 9... Bxd3 {[%clk 0:02:57.5]}
10. Qxd3 {[%clk 0:03:02.8]} 10... Nf6 {[%clk 0:02:53.8]} 11. Bf4 {[%clk
0:03:00.2]} 11... Bd6 {[%clk 0:02:37.5]} 12. Ne5 {[%clk 0:02:50]} 12... Bxe5
{[%clk 0:02:19.6]} 13. Bxe5 {[%clk 0:02:47.2]} 13... Qa5+ {[%clk 0:02:19.4]} 14.
c3 {[%clk 0:02:45.9]} 14... Nbd7 {[%clk 0:02:19]} 15. Bd6 {[%clk 0:02:44.8]}
15... O-O-O {[%clk 0:02:13.8]} 16. a4 {[%clk 0:02:13.9]} 16... e5 {[%clk
0:01:46.9]} 17. Qf5 {[%clk 0:01:42.5]} 17... Qd5 {[%clk 0:01:36.1]} 18. dxe5
{[%clk 0:01:36.1]} 18... Ne8 {[%clk 0:01:22.8]} 19. O-O {[%clk 0:01:18.6]} 19...
Nxd6 {[%clk 0:01:16.8]} 20. exd6 {[%clk 0:01:18.5]} 20... Qxd6 {[%clk
0:00:49.7]} 21. Rad1 {[%clk 0:01:17.3]} 21... Qf6 {[%clk 0:00:46.3]} 22. Rd4
{[%clk 0:01:16.2]} 22... Qxf5 {[%clk 0:00:42.8]} 23. Nxf5 {[%clk 0:01:14.5]}
23... Nf6 {[%clk 0:00:31.2]} 24. Nxg7 {[%clk 0:00:51.2]} 24... Rxd4 {[%clk
0:00:29.3]} 25. cxd4 {[%clk 0:00:52.1]} 25... Rg8 {[%clk 0:00:27.5]} 26. Nf5
{[%clk 0:00:51.4]} 26... Nxh5 {[%clk 0:00:11.8]} 27. Ne7+ {[%clk 0:00:49.6]} 1-0

[Event "*** SCC Grand Prix: Titled Tuesday Blitz"]
[Site "Chess.com"]
[Date "2020.06.02"]
[Round "10"]
[White "chenxiaoyuer"]
[Black "Micki-taryan"]
[Result "1/2-1/2"]
[WhiteElo "2370"]
[BlackElo "2998"]
[TimeControl "180+1"]
[EndTime "11:57:26 PDT"]
[Termination "Game drawn - insufficient material"]

1. e4 {[%clk 0:03:00.9]} 1... Na6 {[%clk 0:03:00.9]} 2. d4 {[%clk 0:02:50.4]}
2... c5 {[%clk 0:03:00.5]} 3. Nf3 {[%clk 0:02:44.3]} 3... cxd4 {[%clk
0:02:59.7]} 4. Nxd4 {[%clk 0:02:41.9]} 4... d6 {[%clk 0:03:00.1]} 5. Be2 {[%clk
0:02:37]} 5... Nf6 {[%clk 0:03:00.5]} 6. Nc3 {[%clk 0:02:35.5]} 6... Nc5 {[%clk
0:03:00.5]} 7. f3 {[%clk 0:02:35.2]} 7... g6 {[%clk 0:03:00.8]} 8. O-O {[%clk
0:02:35]} 8... Bg7 {[%clk 0:03:01.3]} 9. Be3 {[%clk 0:02:34.7]} 9... O-O {[%clk
0:03:01.4]} 10. Qd2 {[%clk 0:02:20.4]} 10... Bd7 {[%clk 0:03:00.6]} 11. Bh6
{[%clk 0:02:17]} 11... Bxh6 {[%clk 0:02:58]} 12. Qxh6 {[%clk 0:02:16.3]} 12...
Qb6 {[%clk 0:02:58.9]} 13. Qe3 {[%clk 0:01:39.2]} 13... Qxb2 {[%clk 0:02:48.3]}
14. Ndb5 {[%clk 0:01:03.4]} 14... Bxb5 {[%clk 0:02:45.8]} 15. Nxb5 {[%clk
0:00:55.8]} 15... Qxc2 {[%clk 0:02:44.2]} 16. Rfc1 {[%clk 0:00:31.3]} 16... Qa4
{[%clk 0:02:41.3]} 17. e5 {[%clk 0:00:27.4]} 17... Nd5 {[%clk 0:02:39.8]} 18.
Qd2 {[%clk 0:00:25.1]} 18... Nf4 {[%clk 0:02:37.9]} 19. exd6 {[%clk 0:00:19.4]}
19... Nxe2+ {[%clk 0:02:36.1]} 20. Qxe2 {[%clk 0:00:18.7]} 20... exd6 {[%clk
0:02:37]} 21. Rd1 {[%clk 0:00:10.7]} 21... Rae8 {[%clk 0:02:35.4]} 22. Qf1
{[%clk 0:00:09.6]} 22... Ne6 {[%clk 0:02:26.7]} 23. Nxd6 {[%clk 0:00:09]} 23...
Rd8 {[%clk 0:02:27.3]} 24. Ne4 {[%clk 0:00:08.8]} 24... Nd4 {[%clk 0:02:27.3]}
25. Rd3 {[%clk 0:00:04.1]} 25... Nc2 {[%clk 0:02:26.5]} 26. Rad1 {[%clk
0:00:03.4]} 26... Ne3 {[%clk 0:02:26.1]} 27. Rxe3 {[%clk 0:00:01.9]} 27... Rxd1
{[%clk 0:02:25.7]} 28. Re1 {[%clk 0:00:01.9]} 28... Qd4+ {[%clk 0:02:26.6]} 29.
Kh1 {[%clk 0:00:01.6]} 29... Rxe1 {[%clk 0:02:27.5]} 30. Qxe1 {[%clk 0:00:02.2]}
30... Rd8 {[%clk 0:02:27.7]} 31. h3 {[%clk 0:00:02.5]} 31... Qd1 {[%clk
0:02:27]} 32. Qxd1 {[%clk 0:00:02.5]} 32... Rxd1+ {[%clk 0:02:27.9]} 33. Kh2
{[%clk 0:00:03.4]} 33... Ra1 {[%clk 0:02:28.8]} 34. Nf6+ {[%clk 0:00:03.7]}
34... Kh8 {[%clk 0:02:28.6]} 35. Ne8 {[%clk 0:00:04.6]} 35... Rxa2 {[%clk
0:02:29.3]} 36. Nd6 {[%clk 0:00:03.9]} 36... Kg7 {[%clk 0:02:30.2]} 37. Nxb7
{[%clk 0:00:03.9]} 37... Rc2 {[%clk 0:02:31.1]} 38. Na5 {[%clk 0:00:03.9]} 38...
Rc3 {[%clk 0:02:31.8]} 39. Nb7 {[%clk 0:00:02.6]} 39... Kf6 {[%clk 0:02:30.2]}
40. Na5 {[%clk 0:00:02.7]} 40... Ke5 {[%clk 0:02:30.2]} 41. Kg3 {[%clk
0:00:03.6]} 41... Kd5 {[%clk 0:02:30.5]} 42. Nb7 {[%clk 0:00:03.9]} 42... f5
{[%clk 0:02:28]} 43. Nd8 {[%clk 0:00:04.2]} 43... a5 {[%clk 0:02:28]} 44. Nf7
{[%clk 0:00:04.7]} 44... a4 {[%clk 0:02:28.9]} 45. Ng5 {[%clk 0:00:05.2]} 45...
a3 {[%clk 0:02:29.3]} 46. Nxh7 {[%clk 0:00:06.1]} 46... a2 {[%clk 0:02:30.2]}
47. Nf8 {[%clk 0:00:07]} 47... a1=Q {[%clk 0:02:30.2]} 48. Nxg6 {[%clk
0:00:07.9]} 48... Qe1+ {[%clk 0:02:30.7]} 49. Kf4 {[%clk 0:00:07.3]} 49... Qe3+
{[%clk 0:02:30]} 50. Kxf5 {[%clk 0:00:06.9]} 50... Qg5+ {[%clk 0:02:30.9]} 51.
Kxg5 {[%clk 0:00:06.5]} 51... Rc2 {[%clk 0:02:30.1]} 52. g4 {[%clk 0:00:06.2]}
52... Rf2 {[%clk 0:02:28.9]} 53. f4 {[%clk 0:00:06.2]} 53... Ke6 {[%clk
0:02:29.3]} 54. f5+ {[%clk 0:00:06.6]} 54... Kf7 {[%clk 0:02:29.3]} 55. h4
{[%clk 0:00:06.8]} 55... Ra2 {[%clk 0:02:30.2]} 56. h5 {[%clk 0:00:07.2]} 56...
Ra8 {[%clk 0:02:31.1]} 57. Nf4 {[%clk 0:00:07.3]} 57... Rg8+ {[%clk 0:02:30.5]}
58. Kh4 {[%clk 0:00:07.5]} 58... Kf6 {[%clk 0:02:31.4]} 59. Ng6 {[%clk
0:00:07.4]} 59... Ra8 {[%clk 0:02:31.7]} 60. h6 {[%clk 0:00:07.7]} 60... Ra1
{[%clk 0:02:32.6]} 61. Kg3 {[%clk 0:00:03.8]} 61... Rh1 {[%clk 0:02:33.5]} 62.
Nh4 {[%clk 0:00:03.8]} 62... Kg5 {[%clk 0:02:32]} 63. Nf3+ {[%clk 0:00:03.7]}
63... Kxh6 {[%clk 0:02:32.4]} 64. Kf4 {[%clk 0:00:04.1]} 64... Rf1 {[%clk
0:02:32.5]} 65. g5+ {[%clk 0:00:04.1]} 65... Kh5 {[%clk 0:02:33.4]} 66. f6
{[%clk 0:00:04.5]} 66... Kg6 {[%clk 0:02:34.3]} 67. Kg4 {[%clk 0:00:04.5]} 67...
Kf7 {[%clk 0:02:33.1]} 68. Ne5+ {[%clk 0:00:03.8]} 68... Ke6 {[%clk 0:02:33.3]}
69. Nf3 {[%clk 0:00:04]} 69... Ra1 {[%clk 0:02:33.1]} 70. Kf4 {[%clk 0:00:04.2]}
70... Ra4+ {[%clk 0:02:32.3]} 71. Ke3 {[%clk 0:00:04.5]} 71... Kf5 {[%clk
0:02:32.1]} 72. f7 {[%clk 0:00:04.9]} 72... Ra8 {[%clk 0:02:32.5]} 73. Nd4+
{[%clk 0:00:05.1]} 73... Kxg5 {[%clk 0:02:32.4]} 74. Ne6+ {[%clk 0:00:05]} 74...
Kf6 {[%clk 0:02:32.5]} 75. f8=Q+ {[%clk 0:00:05.4]} 75... Rxf8 {[%clk 0:02:33]}
76. Nxf8 {[%clk 0:00:06.3]} 1/2-1/2

[Event "*** SCC Grand Prix: Titled Tuesday Blitz"]
[Site "Chess.com"]
[Date "2020.06.02"]
[Round "10"]
[White "EvgenyRomanov"]
[Black "maximnovik"]
[Result "0-1"]
[WhiteElo "2661"]
[BlackElo "2515"]
[TimeControl "180+1"]
[EndTime "11:57:27 PDT"]
[Termination "maximnovik won by resignation"]

1. c4 {[%clk 0:03:00.9]} 1... g6 {[%clk 0:02:58.5]} 2. d4 {[%clk 0:02:59.8]}
2... Nf6 {[%clk 0:02:57.6]} 3. Nc3 {[%clk 0:02:59.6]} 3... d5 {[%clk 0:02:57.6]}
4. cxd5 {[%clk 0:02:58.8]} 4... Nxd5 {[%clk 0:02:57.2]} 5. e3 {[%clk 0:02:59.2]}
5... Nxc3 {[%clk 0:02:57.7]} 6. bxc3 {[%clk 0:02:58.8]} 6... Bg7 {[%clk
0:02:57]} 7. Bc4 {[%clk 0:02:56.1]} 7... c5 {[%clk 0:02:57.4]} 8. Nf3 {[%clk
0:02:55.3]} 8... Qc7 {[%clk 0:02:57.8]} 9. Be2 {[%clk 0:02:43.5]} 9... O-O
{[%clk 0:02:55.6]} 10. O-O {[%clk 0:02:43.3]} 10... b6 {[%clk 0:02:56.1]} 11.
Bb2 {[%clk 0:02:33.4]} 11... Bb7 {[%clk 0:02:53.4]} 12. c4 {[%clk 0:02:29.9]}
12... Nc6 {[%clk 0:02:49.8]} 13. Qd2 {[%clk 0:02:27.1]} 13... cxd4 {[%clk
0:02:38.9]} 14. exd4 {[%clk 0:02:28]} 14... Na5 {[%clk 0:02:32.3]} 15. Rac1
{[%clk 0:02:12.4]} 15... Bxf3 {[%clk 0:02:09.3]} 16. gxf3 {[%clk 0:01:54.5]}
16... Rac8 {[%clk 0:01:57.2]} 17. Rc2 {[%clk 0:01:52]} 17... Rfd8 {[%clk
0:01:55.6]} 18. Qe3 {[%clk 0:01:51.4]} 18... e6 {[%clk 0:01:51.7]} 19. Rfc1
{[%clk 0:01:37.7]} 19... Nb7 {[%clk 0:01:37.5]} 20. c5 {[%clk 0:01:18.7]} 20...
bxc5 {[%clk 0:01:36.7]} 21. dxc5 {[%clk 0:01:18.8]} 21... Bxb2 {[%clk
0:01:35.6]} 22. Rxb2 {[%clk 0:01:19.7]} 22... Nd6 {[%clk 0:01:35]} 23. Rd2
{[%clk 0:01:13.9]} 23... Nf5 {[%clk 0:01:34.3]} 24. Rxd8+ {[%clk 0:01:13.4]}
24... Rxd8 {[%clk 0:01:32.6]} 25. Qg5 {[%clk 0:01:10.8]} 25... h6 {[%clk
0:01:26.1]} 26. Qf6 {[%clk 0:01:08.8]} 26... Rd2 {[%clk 0:01:12.2]} 27. Bf1
{[%clk 0:01:04.2]} 27... Qf4 {[%clk 0:00:59.9]} 28. Qc3 {[%clk 0:00:56.9]} 28...
Nh4 {[%clk 0:00:43.6]} 29. Rb1 {[%clk 0:00:36.7]} 29... Nxf3+ {[%clk 0:00:40.5]}
30. Kg2 {[%clk 0:00:36.5]} 30... Qg4+ {[%clk 0:00:26.3]} 0-1